[Event "Ujir Singh Thapa Memorial 2080"]
[Site "Butwal"]
[Date "2024.04.07"]
[Round "4.2"]
[White "Bristy Mukherjee"]
[Black "Vipul Subhashi"]
[Result "1-0"]
[ECO "B20"]
[WhiteElo "1903"]
[BlackElo "1971"]
[Annotator "NA RC"]
[PlyCount "119"]
[EventDate "2024.04.03"]
[EventType "swiss"]
[EventCountry "NEP"]
[SourceTitle "playchess.com"]
[Source "ChessBase"]
[SourceQuality "1"]
[TimeControl "3600+30"]

1. e4 {[%emt 0:00:04]} c5 {[%emt 0:00:23]} 2. d3 {[%emt 0:01:05]} Nc6 {[%emt 0:00:19]} 3. g3 {[%emt 0:04:04]} g6 {[%emt 0:01:33]} 4. Bg2 {[%emt 0:00:26]} Bg7 {[%emt 0:00:04]} 5. f4 {[%emt 0:06:28]} d6 {[%emt 0:00:07]} 6. Nf3 {[%emt 0:02:02]} e6 {[%emt 1:01:04]} 7. c3 {[%emt 0:00:46]} Nge7 {[%emt 0:00:55]} 8. a4 {[%emt 0:01:27]} O-O {[%emt 0:00:16]} 9. O-O {[%emt 0:01:33]} b6 {[%emt 0:01:11]} 10. Na3 {[%emt 0:02:18]} Ba6 {[%emt 0:01:19]} 11. Nb5 {[%emt 0:00:37]} Bb7 {[%emt 0:00:03]} 12. g4 {[%emt 0:01:14]} a6 {[%emt 0:05:48]} 13. Na3 {[%emt 0:01:18]} d5 {[%emt 0:01:37]} 14. e5 {[%emt 0:05:39]} f6 {[%emt 0:04:07]} 15. d4 {[%emt 0:02:11]} Qd7 {[%emt 0:04:29]} 16. Re1 {[%emt 0:07:55]} fxe5 {[%emt 0:00:38]} 17. fxe5 {[%emt 0:03:09]} Rac8 {[%emt 0:05:11]} 18. Qb3 $19 {[%emt 0:07:39]} (18. b3 $11 {and White stays safe.}) 18... cxd4 {[%emt 0:08:32]} 19. cxd4 {[%emt 0:05:43]} Qc7 {[%emt 0:06:17]} 20. Qd1 {[%emt 0:03:43]} Na5 {[%emt 0:00:38]} 21. Bd2 {[%emt 0:01:39]} Nec6 {[%emt 0:03:06]} 22. h4 {[%emt 0:02:37]} Qe7 {[%emt 0:01:59]} 23. Nc2 {[%emt 0:01:39]} h6 {[%emt 0:05:31]} 24. g5 {[%emt 0:01:02]} h5 {[%emt 0:00:38]} 25. Bc3 {[%emt 0:01:52]} Rf4 26. Qd3 {[%emt 0:01:11]} Kh7 {[%emt 0:03:36]} 27. Bd2 {[%emt 0:00:28]} Re4 {[%emt 0:01:27]} 28. b3 {[%emt 0:01:45]} Rf8 {[%emt 0:02:49]} 29. Rad1 {[%emt 0:01:36]} Qe8 {[%emt 0:01:14]} 30. Bc1 {[%emt 0:00:34]} Ne7 {[%emt 0:00:29]} 31. Ba3 {[%emt 0:00:37]} Rf7 {[%emt 0:00:32]} 32. Rf1 {[%emt 0:00:53]} Nf5 {[%emt 0:00:19]} 33. Bb4 {[%emt 0:00:37]} Nxh4 {[%emt 0:03:52]} 34. Nxh4 {[%emt 0:00:43]} Rxh4 {[%emt 0:00:32]} 35. Bd2 {[%emt 0:00:36]} Nc6 {[%emt 0:00:40]} 36. Rf6 {[%emt 0:00:32]} Rxf6 {[%emt 0:00:58]} 37. gxf6 {[%emt 0:00:13]} Bf8 {[%emt 0:00:13]} 38. Be3 {[%emt 0:00:25]} Nd8 {[%emt 0:02:01]} 39. Ne1 {[%emt 0:00:22]} Nf7 {[%emt 0:01:05]} 40. Rc1 {[%emt 0:00:16]} Bh6 {[%emt 0:02:42]} 41. Rc7 {[%emt 0:00:33]} Bc8 {[%emt 0:00:42]} 42. Bf2 {[%emt 0:01:19]} Rg4 {[%emt 0:01:23]} 43. Qc3 {[%emt 0:00:31]} Bd7 {[%emt 0:00:06]} 44. Ra7 {[%emt 0:00:06]} h4 {[%emt 0:01:27]} 45. Kh1 {[%emt 0:00:12]} Ng5 {[%emt 0:00:28]} 46. Qc7 {[%emt 0:00:58]} h3 {[%emt 0:00:34]} 47. Bf1 {[%emt 0:00:27]} Ne4 {[%emt 0:00:58]} 48. Nd3 {[%emt 0:00:13]} Nxf2+ {[%emt 0:00:47]} 49. Nxf2 {[%emt 0:00:01]} Rf4 {[%emt 0:00:04]} 50. Qd6 {[%emt 0:00:48]} Bf8 {[%emt 0:01:03]} 51. Qxd7+ {[%emt 0:01:01]} Qxd7 {[%emt 0:00:02]} 52. Rxd7+ {[%emt 0:00:06]} Kh6 {[%emt 0:00:09]} 53. Bxh3 {[%emt 0:00:58]} Rxf2 {[%emt 0:00:05]} 54. Bxe6 {[%emt 0:00:07]} Kg5 {[%emt 0:00:50]} 55. Rf7 Bb4 {[%emt 0:00:30]} 56. Bxd5 Bc3 {[%emt 0:00:30]} 57. e6 Bxd4 {[%emt 0:00:30]} 58. e7 Kg4 {[%emt 0:00:30]} 59. e8=Q Rf4 {[%emt 0:00:30]} 60. Kh2 1-0

[Event "Ujir Singh Thapa Memorial 2080"]
[Site "Butwal"]
[Date "2024.04.07"]
[Round "4.3"]
[White "Jaiswal, Rupesh"]
[Black "Gautam, Prashant"]
[Result "1-0"]
[ECO "C45"]
[WhiteElo "1969"]
[BlackElo "1717"]
[Annotator "RC"]
[PlyCount "41"]
[EventDate "2024.04.03"]
[EventType "swiss"]
[EventCountry "NEP"]
[SourceTitle "playchess.com"]
[Source "ChessBase"]
[SourceQuality "1"]
[TimeControl "3600+30"]

1. e4 {[%emt 0:00:14]} e5 {[%emt 0:00:19]} 2. Nf3 {[%emt 0:00:04]} Nc6 {[%emt 0:00:22]} 3. d4 {[%emt 0:00:01]} exd4 {[%emt 0:00:33]} 4. Nxd4 {[%emt 0:00:02]} Bc5 {[%emt 0:00:57]} 5. Nb3 {[%emt 0:00:09]} Bb6 {[%emt 0:00:40]} 6. Nc3 {[%emt 0:00:03]} Qf6 {[%emt 0:01:54]} 7. Qe2 {[%emt 0:01:07]} Nge7 {[%emt 0:01:38]} 8. Be3 {[%emt 0:00:57]} Nd4 {[%emt 0:03:15]} 9. Qd2 {[%emt 0:07:03]} c5 {[%emt 0:02:07]} 10. O-O-O {[%emt 0:01:55]} Nec6 {[%emt 0:00:42]} 11. Nd5 {[%emt 0:04:14]} Nxb3+ {[%emt 0:03:01]} 12. axb3 {[%emt 0:00:44]} Qd8 {[%emt 0:06:09]} 13. Bc4 {[%emt 0:08:28]} O-O {[%emt 0:01:08]} 14. Bg5 {[%emt 0:03:42]} Qe8 {[%emt 0:01:37]} 15. Nf6+ {[%emt 0:00:24]} gxf6 {[%emt 0:01:15]} 16. Bxf6 {[%emt 0:00:04]} Qxe4 {[%emt 0:00:16]} 17. Bd3 {[%emt 0:00:10]} Qg6 {[%emt 0:15:01]} 18. Bxg6 {[%emt 0:00:27]} fxg6 {[%emt 0:00:42]} 19. Qd5+ {[%emt 0:00:03]} Rf7 {[%emt 0:00:22]} 20. Rhe1 {[%emt 0:00:03]} Kf8 {[%emt 0:02:54]} 21. Qd6+ {[%emt 0:00:06]} 1-0

[Event "Ujir Singh Thapa Memorial 2080"]
[Site "Butwal"]
[Date "2024.04.07"]
[Round "4.4"]
[White "B.K, Tirth Bahadur"]
[Black "Sinha, Sudhir Kumar"]
[Result "0-1"]
[ECO "B45"]
[WhiteElo "1866"]
[BlackElo "1968"]
[Annotator "NA RC"]
[PlyCount "63"]
[EventDate "2024.04.03"]
[EventType "swiss"]
[EventCountry "NEP"]
[SourceTitle "playchess.com"]
[Source "ChessBase"]
[SourceQuality "1"]
[TimeControl "3600+30"]

1. e4 {[%emt 0:39:27]} c5 2. Nf3 {[%emt 0:00:30]} e6 3. Nc3 {[%emt 0:00:30]} Nc6 4. d4 {[%emt 0:00:30]} cxd4 5. Nxd4 {[%emt 0:00:30]} Nf6 6. a3 {[%emt 0:00:30]} a5 7. Be3 {[%emt 0:00:30]} Qc7 8. Be2 {[%emt 0:00:30]} b5 9. Nxc6 {[%emt 0:00:30]} dxc6 10. f3 {[%emt 0:00:30]} e5 11. O-O {[%emt 0:00:30]} Be7 12. Qd2 {[%emt 0:00:30]} O-O 13. Rfd1 {[%emt 0:00:30]} Be6 14. Qe1 {[%emt 0:00:30]} Nd7 15. Qf2 {[%emt 0:00:30]} f5 16. exf5 {[%emt 0:00:30]} Bxf5 17. Bd3 {[%emt 0:00:30]} Be6 18. Rd2 {[%emt 0:00:30]} Nf6 19. Bc5 {[%emt 0:00:30]} Ng4 20. fxg4 {[%emt 0:00:30]} Rxf2 21. Bxf2 {[%emt 0:00:30]} Bxg4 22. Be4 {[%emt 0:00:30]} Rf8 23. h3 {[%emt 0:00:30]} Bh5 24. Be3 {[%emt 0:00:30]} h6 $19 25. g4 {[%emt 0:00:30]} Be8 26. Rd3 {[%emt 0:00:30]} h5 27. Kh2 {[%emt 0:00:30]} Bd6 28. Rad1 {[%emt 0:00:30]} Be7 29. Kg3 {[%emt 0:00:30]} Qc8 30. Bf3 {[%emt 0:00:30]} hxg4 31. hxg4 {[%emt 0:00:30]} Rxf3+ 32. Kxf3 {[%emt 0:00:30]} 0-1

[Event "Ujir Singh Thapa Memorial 2080"]
[Site "Butwal"]
[Date "2024.04.07"]
[Round "4.5"]
[White "Harsh, Himanshu"]
[Black "Rishabh Nishad"]
[Result "0-1"]
[ECO "B71"]
[WhiteElo "1855"]
[BlackElo "1953"]
[Annotator "NA RC"]
[PlyCount "40"]
[EventDate "2024.04.03"]
[EventType "swiss"]
[EventCountry "NEP"]
[SourceTitle "playchess.com"]
[Source "ChessBase"]
[SourceQuality "1"]
[TimeControl "3600+30"]

1. e4 {[%emt 0:00:05]} c5 {[%emt 0:00:05]} 2. Nf3 {[%emt 0:00:08]} d6 {[%emt 0:00:05]} 3. d4 {[%emt 0:00:17]} cxd4 {[%emt 0:00:40]} 4. Nxd4 {[%emt 0:00:10]} Nf6 {[%emt 0:00:06]} 5. Nc3 {[%emt 0:00:17]} g6 {[%emt 0:00:05]} 6. f4 {[%emt 0:00:44]} Nc6 {[%emt 0:00:06]} 7. Nxc6 {[%emt 0:01:22]} bxc6 {[%emt 0:00:21]} 8. e5 {[%emt 0:00:10]} Nd7 {[%emt 0:00:36]} 9. exd6 {[%emt 0:03:21]} exd6 {[%emt 0:00:04]} 10. Bd3 Be7 {[%emt 0:08:04]} 11. O-O {[%emt 0:05:16]} O-O {[%emt 0:00:11]} 12. f5 {[%emt 0:08:11]} Ne5 {[%emt 0:01:56]} 13. Bh6 {[%emt 0:02:12]} Re8 {[%emt 0:04:26]} 14. Kh1 {[%emt 0:02:39]} d5 {[%emt 0:04:08]} 15. fxg6 {[%emt 0:23:18]} hxg6 {[%emt 0:01:08]} 16. h3 {[%emt 0:02:08]} Rb8 {[%emt 0:02:59]} 17. b3 {[%emt 0:01:29]} Rb4 {[%emt 0:03:04]} 18. Bf4 $15 {[%emt 0:02:00]} Bf6 {[%emt 0:04:45]} 19. a3 {[%emt 0:02:48]} Nxd3 {[%emt 0:03:26]} 20. cxd3 {[%emt 0:03:09]} Rxf4 {[%emt 0:00:20]} 0-1

[Event "Ujir Singh Thapa Memorial 2080"]
[Site "Butwal"]
[Date "2024.04.07"]
[Round "4.6"]
[White "Divyanshu Kumar Singh"]
[Black "Maharjan, Sajin"]
[Result "1/2-1/2"]
[ECO "D78"]
[WhiteElo "1745"]
[BlackElo "1930"]
[Annotator "NA RC"]
[PlyCount "174"]
[EventDate "2024.04.03"]
[EventType "swiss"]
[EventCountry "NEP"]
[SourceTitle "playchess.com"]
[Source "ChessBase"]
[SourceQuality "1"]
[TimeControl "3600+30"]

1. d4 {[%emt 0:00:02]} Nf6 {[%emt 0:00:10]} 2. c4 {[%emt 0:00:01]} g6 {[%emt 0:00:10]} 3. g3 {[%emt 0:00:02]} Bg7 {[%emt 0:00:47]} 4. Bg2 {[%emt 0:00:02]} d5 {[%emt 0:05:47]} 5. Nf3 {[%emt 0:00:47]} c6 {[%emt 0:01:34]} 6. O-O {[%emt 0:00:15]} O-O {[%emt 0:00:31]} 7. b3 {[%emt 0:01:44]} Ne4 8. Bb2 Nd7 {[%emt 0:06:01]} 9. Nfd2 {[%emt 0:04:42]} Ndf6 {[%emt 0:05:25]} 10. f3 {[%emt 0:01:50]} Nxd2 {[%emt 0:00:34]} 11. Nxd2 {[%emt 0:01:32]} Rb8 {[%emt 0:07:19]} 12. e4 {[%emt 0:01:32]} dxe4 {[%emt 0:03:22]} 13. fxe4 {[%emt 0:00:39]} Ng4 {[%emt 0:00:28]} 14. Nf3 {[%emt 0:04:48]} Ne3 {[%emt 0:01:02]} 15. Qd2 {[%emt 0:00:12]} Nxf1 {[%emt 0:00:44]} 16. Rxf1 {[%emt 0:00:04]} Bg4 {[%emt 0:04:11]} 17. Ne1 {[%emt 0:00:06]} Qd7 {[%emt 0:02:34]} 18. Qf2 {[%emt 0:00:56]} Rbd8 {[%emt 0:01:13]} 19. d5 {[%emt 0:02:33]} Bxb2 {[%emt 0:04:15]} 20. Qxb2 {[%emt 0:00:03]} Bh3 {[%emt 0:01:12]} 21. Bxh3 {[%emt 0:02:16]} Qxh3 {[%emt 0:00:02]} 22. Nd3 {[%emt 0:00:02]} Qg4 {[%emt 0:03:53]} 23. Re1 {[%emt 0:03:01]} Qf3 {[%emt 0:03:20]} 24. Ne5 $19 {[%emt 0:01:14]} Qf6 {[%emt 0:00:12]} 25. Rf1 {[%emt 0:01:58]} Qg7 {[%emt 0:00:14]} 26. Qd4 {[%emt 0:06:13]} f5 {[%emt 0:02:23]} 27. exf5 {[%emt 0:08:08]} Rxf5 {[%emt 0:01:15]} 28. Re1 {[%emt 0:00:34]} Qf6 {[%emt 0:02:20]} 29. Qe3 {[%emt 0:02:08]} h5 {[%emt 0:05:30]} 30. g4 {[%emt 0:14:44]} hxg4 {[%emt 0:00:53]} 31. Qg3 {[%emt 0:01:10]} Rg5 {[%emt 0:02:37]} 32. Kh1 {[%emt 0:04:08]} Rf8 {[%emt 0:01:17]} 33. dxc6 {[%emt 0:01:15]} bxc6 {[%emt 0:00:52]} 34. Kg2 {[%emt 0:00:23]} Qd6 {[%emt 0:01:10]} 35. Qe3 {[%emt 0:02:38]} Rff5 {[%emt 0:00:59]} 36. Nd3 {[%emt 0:01:49]} Kf8 {[%emt 0:01:36]} 37. Nf2 {[%emt 0:01:23]} Re5 {[%emt 0:01:45]} 38. Ne4 {[%emt 0:00:46]} Rxe4 {[%emt 0:00:52]} 39. Qxe4 {[%emt 0:00:02]} Rh5 {[%emt 0:00:01]} 40. Rf1+ {[%emt 0:00:34]} Ke8 {[%emt 0:01:09]} 41. Qf4 {[%emt 0:00:02]} Rf5 {[%emt 0:00:33]} 42. Qxd6 {[%emt 0:01:38]} exd6 {[%emt 0:00:02]} 43. Rd1 {[%emt 0:00:44]} Kd7 {[%emt 0:00:36]} 44. Rd4 {[%emt 0:00:01]} Rg5 {[%emt 0:00:50]} 45. Kg3 {[%emt 0:00:33]} Ke6 {[%emt 0:00:32]} 46. Re4+ {[%emt 0:01:26]} Kf6 {[%emt 0:00:21]} 47. a4 {[%emt 0:00:55]} d5 {[%emt 0:00:31]} 48. cxd5 {[%emt 0:01:33]} cxd5 {[%emt 0:00:01]} 49. Re8 {[%emt 0:00:01]} a5 {[%emt 0:00:41]} 50. Rf8+ {[%emt 0:01:05]} Ke6 {[%emt 0:00:10]} 51. Re8+ {[%emt 0:00:43]} Kd7 {[%emt 0:00:16]} 52. Re1 {[%emt 0:00:48]} Kd6 {[%emt 0:00:14]} 53. Kf4 {[%emt 0:00:18]} Rh5 {[%emt 0:00:05]} 54. Re2 {[%emt 0:00:49]} Rf5+ {[%emt 0:01:13]} 55. Kxg4 {[%emt 0:00:05]} d4 {[%emt 0:00:08]} 56. Re8 {[%emt 0:00:20]} Kd5 {[%emt 0:00:25]} 57. b4 {[%emt 0:00:30]} axb4 {[%emt 0:00:30]} 58. a5 {[%emt 0:00:30]} Kc4 {[%emt 0:00:30]} 59. a6 {[%emt 0:00:30]} Ra5 {[%emt 0:00:30]} 60. Ra8 {[%emt 0:00:30]} b3 {[%emt 0:00:30]} 61. a7 {[%emt 0:00:30]} Kd3 {[%emt 0:00:30]} 62. Rb8 {[%emt 0:00:30]} Rxa7 63. Rxb3+ {[%emt 0:00:30]} Ke4 64. Rb6 {[%emt 0:00:30]} Ra1 {[%emt 0:01:30]} 65. Re6+ {[%emt 0:00:30]} Kd3 66. Kf3 {[%emt 0:00:30]} Rg1 {[%emt 0:01:00]} 67. Kf2 {[%emt 0:00:30]} Rg4 {[%emt 0:00:30]} 68. h3 {[%emt 0:00:30]} Rg5 {[%emt 0:00:30]} 69. Ra6 {[%emt 0:00:30]} Rg1 {[%emt 0:01:09]} 70. Re6 {[%emt 0:00:00]} Rg5 {[%emt 0:00:07]} 71. Ra6 {[%emt 0:00:18]} Rf5+ {[%emt 0:01:35]} 72. Ke1 {[%emt 0:00:03]} g5 {[%emt 0:00:22]} 73. Ra3+ {[%emt 0:00:35]} Ke4 {[%emt 0:00:04]} 74. Ke2 {[%emt 0:00:57]} Rc5 {[%emt 0:00:27]} 75. Rg3 {[%emt 0:00:14]} Kf5 {[%emt 0:01:23]} 76. Kd2 {[%emt 0:00:33]} Rc3 {[%emt 0:00:18]} 77. Rg4 {[%emt 0:00:29]} Rxh3 {[%emt 0:00:36]} 78. Rxd4 {[%emt 0:00:02]} Rf3 {[%emt 0:00:37]} 79. Ke2 {[%emt 0:00:22]} Rf4 {[%emt 0:00:17]} 80. Rxf4+ {[%emt 0:00:14]} Kxf4 {[%emt 0:00:01]} 81. Kf2 {[%emt 0:00:01]} g4 {[%emt 0:00:07]} 82. Kg2 {[%emt 0:00:03]} g3 {[%emt 0:00:17]} 83. Kg1 {[%emt 0:00:02]} Kg4 {[%emt 0:00:02]} 84. Kg2 {[%emt 0:00:07]} Kf4 {[%emt 0:00:03]} 85. Kg1 {[%emt 0:00:05]} Kf3 {[%emt 0:00:01]} 86. Kf1 {[%emt 0:00:12]} g2+ {[%emt 0:00:01]} 87. Kg1 {[%emt 0:00:01]} Kg3 {[%emt 0:04:16]} 1/2-1/2

[Event "Ujir Singh Thapa Memorial 2080"]
[Site "Butwal"]
[Date "2024.04.07"]
[Round "4.7"]
[White "Tamang, Sudip"]
[Black "Prakhar Tripathi"]
[Result "1-0"]
[ECO "D00"]
[WhiteElo "1916"]
[BlackElo "1599"]
[Annotator "NA RC"]
[PlyCount "119"]
[EventDate "2024.04.03"]
[EventType "swiss"]
[EventCountry "NEP"]
[SourceTitle "playchess.com"]
[Source "ChessBase"]
[SourceQuality "1"]
[TimeControl "3600+30"]

1. d4 {[%emt 0:00:04]} Nf6 {[%emt 0:00:11]} 2. Bf4 {[%emt 0:00:09]} d5 {[%emt 0:00:18]} 3. e3 {[%emt 0:00:36]} c5 {[%emt 0:00:05]} 4. c3 {[%emt 0:00:36]} Nc6 {[%emt 0:00:05]} 5. Nd2 {[%emt 0:00:08]} Qb6 {[%emt 0:00:07]} 6. Qb3 {[%emt 0:00:48]} c4 {[%emt 0:00:24]} 7. Qc2 {[%emt 0:00:07]} Nh5 {[%emt 0:00:40]} 8. Bg5 {[%emt 0:01:23]} h6 {[%emt 0:00:34]} 9. Bh4 {[%emt 0:00:13]} g5 {[%emt 0:01:37]} 10. Be2 {[%emt 0:01:02]} Ng7 {[%emt 0:01:56]} 11. Bg3 {[%emt 0:00:01]} Bf5 {[%emt 0:00:17]} 12. e4 {[%emt 0:01:19]} Bg6 {[%emt 0:05:17]} 13. b3 {[%emt 0:01:13]} cxb3 {[%emt 0:01:33]} 14. axb3 {[%emt 0:00:14]} e6 {[%emt 0:00:18]} 15. Bd3 {[%emt 0:08:54]} Rc8 {[%emt 0:08:34]} 16. Qb1 {[%emt 0:00:48]} dxe4 {[%emt 0:03:13]} 17. Nc4 {[%emt 0:05:42]} Qd8 {[%emt 0:00:53]} 18. Bxe4 {[%emt 0:01:34]} Bxe4 {[%emt 0:01:49]} 19. Qxe4 {[%emt 0:00:08]} f5 {[%emt 0:00:40]} 20. Qb1 $11 {[%emt 0:05:22]} f4 {[%emt 0:05:53]} 21. Qg6+ {[%emt 0:00:19]} Ke7 {[%emt 0:01:46]} 22. h4 {[%emt 0:09:45]} fxg3 {[%emt 0:02:12]} 23. hxg5 {[%emt 0:00:23]} gxf2+ {[%emt 0:01:03]} 24. Kxf2 {[%emt 0:00:37]} Qd5 {[%emt 0:13:52]} 25. Ne3 {[%emt 0:03:55]} Qd6 {[%emt 0:14:26]} 26. gxh6 {[%emt 0:05:29]} Qf4+ {[%emt 0:02:41]} 27. Nf3 {[%emt 0:00:22]} Nf5 28. Rae1 {[%emt 0:04:04]} Nxe3 {[%emt 0:02:15]} 29. Rxe3 {[%emt 0:00:02]} Qf6 {[%emt 0:00:44]} 30. Rxe6+ {[%emt 0:05:16]} Qxe6 {[%emt 0:00:17]} 31. Re1 {[%emt 0:00:07]} Qxe1+ {[%emt 0:00:13]} 32. Kxe1 {[%emt 0:00:10]} Rxh6 {[%emt 0:01:46]} 33. Qg5+ {[%emt 0:00:32]} Ke8 {[%emt 0:00:41]} 34. d5 {[%emt 0:01:15]} Ne7 {[%emt 0:00:28]} 35. c4 {[%emt 0:00:39]} b5 {[%emt 0:00:32]} 36. Qe5 {[%emt 0:01:40]} Kd7 {[%emt 0:00:33]} 37. Nd2 {[%emt 0:01:58]} bxc4 {[%emt 0:00:25]} 38. bxc4 {[%emt 0:00:13]} a5 {[%emt 0:00:34]} 39. Kf2 {[%emt 0:02:02]} a4 {[%emt 0:00:20]} 40. Qb2 {[%emt 0:00:38]} a3 {[%emt 0:00:40]} 41. Qxa3 {[%emt 0:00:30]} Rf6+ {[%emt 0:00:30]} 42. Ke2 {[%emt 0:01:23]} Bh6 {[%emt 0:00:35]} 43. Ne4 {[%emt 0:01:29]} Rg6 {[%emt 0:00:12]} 44. Qa4+ {[%emt 0:00:37]} Kd8 {[%emt 0:00:27]} 45. Qa5+ {[%emt 0:01:02]} Ke8 {[%emt 0:00:33]} 46. d6 {[%emt 0:00:24]} Nc6 {[%emt 0:00:46]} 47. Qh5 {[%emt 0:01:15]} Kf7 {[%emt 0:00:26]} 48. Qf5+ {[%emt 0:00:19]} Kg7 {[%emt 0:00:10]} 49. Qxc8 {[%emt 0:00:13]} Nd4+ {[%emt 0:00:07]} 50. Kd3 {[%emt 0:00:34]} Ne6 {[%emt 0:00:43]} 51. Qd7+ {[%emt 0:00:36]} Kh8 {[%emt 0:00:23]} 52. Qe8+ {[%emt 0:00:15]} Kh7 {[%emt 0:00:19]} 53. Qf7+ {[%emt 0:00:44]} Bg7 {[%emt 0:00:07]} 54. Qf5 {[%emt 0:00:33]} Bh6 {[%emt 0:00:39]} 55. Nf6+ {[%emt 0:00:35]} Kg7 {[%emt 0:00:05]} 56. Nh5+ {[%emt 0:00:40]} Kh7 {[%emt 0:00:08]} 57. d7 {[%emt 0:01:00]} Bg5 {[%emt 0:00:19]} 58. Nf6+ {[%emt 0:02:19]} Bxf6 {[%emt 0:01:08]} 59. Qxe6 {[%emt 0:00:14]} Bg5 {[%emt 0:00:29]} 60. Qf7+ {[%emt 0:00:28]} 1-0

[Event "Ujir Singh Thapa Memorial 2080"]
[Site "Butwal"]
[Date "2024.04.07"]
[Round "5.1"]
[White "Chaulagain, Purushottam"]
[Black "Jaiswal, Rupesh"]
[Result "0-1"]
[ECO "B07"]
[WhiteElo "1906"]
[BlackElo "1969"]
[Annotator "RC"]
[PlyCount "86"]
[EventDate "2024.04.03"]
[EventType "swiss"]
[EventCountry "NEP"]
[SourceTitle "playchess.com"]
[Source "ChessBase"]
[SourceQuality "1"]
[TimeControl "3600+30"]

1. d4 {[%emt 0:00:04]} c5 {[%emt 0:00:18]} 2. d5 {[%emt 0:00:06]} Nf6 {[%emt 0:00:10]} 3. Nc3 {[%emt 0:00:12]} d6 {[%emt 0:00:51]} 4. e4 {[%emt 0:00:06]} g6 {[%emt 0:00:19]} 5. Be2 {[%emt 0:00:42]} Bg7 {[%emt 0:00:34]} 6. h4 {[%emt 0:00:20]} h5 {[%emt 0:00:31]} 7. Nf3 {[%emt 0:00:17]} a6 {[%emt 0:00:42]} 8. a4 {[%emt 0:00:05]} O-O {[%emt 0:02:25]} 9. Bf4 {[%emt 0:04:25]} Bg4 {[%emt 0:01:32]} 10. Nd2 {[%emt 0:00:12]} Bxe2 {[%emt 0:00:44]} 11. Qxe2 {[%emt 0:00:02]} Nbd7 {[%emt 0:00:35]} 12. f3 {[%emt 0:02:34]} b5 {[%emt 0:07:01]} 13. a5 {[%emt 0:11:10]} Rc8 {[%emt 0:02:39]} 14. g4 {[%emt 0:04:06]} Ne5 {[%emt 0:03:00]} 15. Bxe5 {[%emt 0:06:16]} dxe5 {[%emt 0:00:16]} 16. Nd1 {[%emt 0:00:37]} c4 {[%emt 0:01:49]} 17. c3 {[%emt 0:01:06]} Qd7 {[%emt 0:01:11]} 18. Ne3 {[%emt 0:00:44]} Rfd8 {[%emt 0:00:10]} 19. g5 {[%emt 0:03:38]} Ne8 {[%emt 0:01:33]} 20. Nc2 {[%emt 0:00:45]} e6 {[%emt 0:02:06]} 21. Nb4 {[%emt 0:01:09]} Nc7 {[%emt 0:00:47]} 22. dxe6 {[%emt 0:02:02]} Qxe6 {[%emt 0:02:07]} 23. Nf1 {[%emt 0:00:32]} Bf8 {[%emt 0:00:18]} 24. Nc2 {[%emt 0:06:59]} Rd3 {[%emt 0:00:58]} 25. Nce3 {[%emt 0:01:22]} Rcd8 {[%emt 0:00:39]} 26. Rd1 {[%emt 0:00:24]} Bc5 {[%emt 0:02:40]} 27. b3 {[%emt 0:04:12]} Rxd1+ {[%emt 0:02:07]} 28. Nxd1 {[%emt 0:00:14]} cxb3 {[%emt 0:00:22]} 29. Nfe3 {[%emt 0:03:48]} Qd6 {[%emt 0:01:55]} 30. Rh2 {[%emt 0:01:46]} Qd3 {[%emt 0:02:14]} 31. Nd5 {[%emt 0:04:38]} Qxe2+ {[%emt 0:00:22]} 32. Rxe2 {[%emt 0:00:05]} Nxd5 {[%emt 0:00:33]} 33. Rd2 {[%emt 0:00:28]} b4 {[%emt 0:01:23]} 34. c4 {[%emt 0:05:19]} Bd4 {[%emt 0:00:46]} 35. Rxd4 {[%emt 0:00:07]} exd4 {[%emt 0:00:36]} 36. exd5 {[%emt 0:00:30]} Rc8 {[%emt 0:00:56]} 37. Nb2 {[%emt 0:00:44]} Rc5 {[%emt 0:00:21]} 38. Kd2 {[%emt 0:00:41]} Rxa5 {[%emt 0:00:18]} 39. Nd3 {[%emt 0:00:10]} Ra2+ {[%emt 0:01:10]} 40. Kc1 {[%emt 0:00:09]} Rc2+ {[%emt 0:00:19]} 41. Kb1 {[%emt 0:00:33]} Rxc4 {[%emt 0:00:48]} 42. d6 {[%emt 0:00:25]} Kf8 {[%emt 0:00:25]} 43. Ne5 {[%emt 0:00:24]} Rc3 {[%emt 0:00:34]} 0-1

[Event "Ujir Singh Thapa Memorial 2080"]
[Site "Butwal"]
[Date "2024.04.07"]
[Round "5.2"]
[White "Sinha, Sudhir Kumar"]
[Black "Tamang, Sudip"]
[Result "1/2-1/2"]
[ECO "B26"]
[WhiteElo "1968"]
[BlackElo "1916"]
[Annotator "RC"]
[PlyCount "79"]
[EventDate "2024.04.03"]
[EventType "swiss"]
[EventCountry "NEP"]
[SourceTitle "playchess.com"]
[Source "ChessBase"]
[SourceQuality "1"]
[TimeControl "3600+30"]

1. e4 {[%emt 0:01:31]} c5 {[%emt 0:00:15]} 2. Nc3 {[%emt 0:01:41]} g6 {[%emt 0:00:47]} 3. g3 {[%emt 0:05:02]} Nc6 {[%emt 0:00:44]} 4. Bg2 {[%emt 0:00:17]} Bg7 {[%emt 0:00:32]} 5. d3 {[%emt 0:00:18]} d6 {[%emt 0:01:48]} 6. Be3 {[%emt 0:00:38]} Rb8 {[%emt 0:02:10]} 7. Nge2 {[%emt 0:02:10]} b5 {[%emt 0:01:20]} 8. a3 {[%emt 0:03:46]} Nd4 {[%emt 0:02:59]} 9. O-O {[%emt 0:02:29]} e6 {[%emt 0:01:26]} 10. Qd2 {[%emt 0:01:21]} Ne7 {[%emt 0:00:19]} 11. Bh6 {[%emt 0:01:14]} O-O {[%emt 0:01:21]} 12. Nxd4 {[%emt 0:01:07]} cxd4 {[%emt 0:00:27]} 13. Bxg7 {[%emt 0:00:15]} Kxg7 {[%emt 0:00:12]} 14. Ne2 {[%emt 0:00:05]} Qb6 {[%emt 0:01:29]} 15. f4 {[%emt 0:03:07]} f5 {[%emt 0:01:48]} 16. Kh1 {[%emt 0:00:47]} a5 {[%emt 0:07:42]} 17. c3 {[%emt 0:03:17]} dxc3 {[%emt 0:06:20]} 18. Qxc3+ {[%emt 0:02:59]} Kg8 {[%emt 0:00:21]} 19. Rac1 {[%emt 0:00:25]} b4 {[%emt 0:11:35]} 20. Qc7 {[%emt 0:03:29]} Re8 {[%emt 0:01:02]} 21. Nd4 {[%emt 0:05:40]} Ba6 {[%emt 0:06:54]} 22. Qxb6 {[%emt 0:06:48]} Rxb6 {[%emt 0:00:20]} 23. Rfd1 {[%emt 0:00:46]} Kf7 {[%emt 0:03:20]} 24. Rc7 {[%emt 0:06:17]} Rc8 {[%emt 0:02:26]} 25. Rxc8 {[%emt 0:01:35]} Bxc8 {[%emt 0:00:54]} 26. h4 {[%emt 0:00:56]} bxa3 {[%emt 0:02:11]} 27. bxa3 {[%emt 0:00:46]} Ba6 {[%emt 0:00:22]} 28. h5 {[%emt 0:01:18]} gxh5 {[%emt 0:01:48]} 29. Bf3 {[%emt 0:00:24]} Kf6 {[%emt 0:01:10]} 30. Bxh5 {[%emt 0:00:52]} e5 {[%emt 0:00:49]} 31. Ne2 {[%emt 0:02:58]} Rb3 {[%emt 0:00:45]} 32. d4 {[%emt 0:00:19]} Bxe2 {[%emt 0:02:42]} 33. dxe5+ {[%emt 0:00:11]} dxe5 {[%emt 0:00:19]} 34. Rd6+ {[%emt 0:00:05]} Kg7 {[%emt 0:00:23]} 35. Bxe2 {[%emt 0:00:32]} exf4 {[%emt 0:00:49]} 36. Rd7 {[%emt 0:02:07]} Kf8 {[%emt 0:02:02]} 37. Rd8+ {[%emt 0:00:04]} Kg7 {[%emt 0:00:18]} 38. Rd7 {[%emt 0:00:01]} Kf8 {[%emt 0:04:36]} 39. Rd8+ {[%emt 0:00:01]} Kg7 {[%emt 0:00:15]} 40. Rd7 {[%emt 0:00:01]} 1/2-1/2